Cogmind - Beta 17.1 @@@ ROGUE MODE // 2026.08.27 @ 23:02:27 Player: SunShine214 Result: Destroyed by S-10 Pest with Light Assault Rifle Performance ------------- Evolutions (1) 500 Regions Visited (2) 400 Robots Destroyed (42) 210 Value Destroyed (868) 868 Prototype IDs (2) 40 Alien Tech Used (0) 0 Bonus (0) 0 TOTAL SCORE: 2018 Bonus ------- None Cogmind --------- Core Integrity 0/400 Matter 300/300 Energy 95/100 System Corruption 6% Temperature Cool (0) Movement Core (400) Ox7 Location -9/Materials Parts ------- > --- POWER (1) -------- (None) > --- PROPULSION (2) --- (None) > --- UTILITY (4) ------ Large Storage Unit > --- WEAPON (2) ------- Mace > --- INVENTORY (15) --- Airjet Improved Flight Unit Improved Flight Unit High-capacity Storage Unit Core Shielding Plasma Cutter Peak State ------------ > --- POWER ------------ Light Ion Engine > --- PROPULSION ------- Airjet Airjet > --- UTILITY ---------- Large Storage Unit Seismic Detector Hacking Suite System Shield > --- WEAPON ----------- Advanced Beam Cannon Grenade Launcher > --- INVENTORY -------- Light Treads Light Treads Light Treads Improved Treads Airjet Improved Flight Unit Improved Flight Unit High-capacity Storage Unit Core Shielding Medium Laser Plasma Cutter Mace [Rating: 21] Favorites ----------- Power Light Nuclear Core Engine Light Ion Engine Power Core Light Nuclear Core Propulsion Light Treads Treads Light Treads Leg Aluminum Leg Hover Unit Airjet Flight Unit Improved Flight Unit Utility Seismic Detector Device Seismic Detector Storage Large Storage Unit Hackware System Shield Weapon EM Pulse Gun Energy Gun EM Pulse Gun Energy Cannon Advanced Beam Cannon Launcher Grenade Launcher Impact Weapon Mace Build | -11 -10 -9 ------- Run | Yrd Mat Mat Slots Evolved 2 | . . 2 Power . | . . . Propulsion . | . . . Utility 2 | . . 2 Weapon . | . . . Parts Attached 24 | 7 5 12 Power 3 | 1 1 1 Engine 2 | 1 . 1 Core 1 | . 1 . Reactor . | . . . Propulsion 11 | 2 2 7 Treads 6 | 2 1 3 Leg 1 | . 1 . Wheel . | . . . Hover 3 | . . 3 Flight 1 | . . 1 Utility 5 | 2 1 2 Device 1 | 1 . . Storage 2 | 1 1 . Processor . | . . . Hackware 2 | . . 2 Protection . | . . . Artifact . | . . . Weapon 5 | 2 1 2 Energy Gun 2 | 2 . . Energy Cannon 1 | . . 1 Ballistic Gun . | . . . Ballistic Cannon . | . . . Launcher 1 | . 1 . Special Weapon . | . . . Impact Weapon 1 | . . 1 Slashing Weapon . | . . . Piercing Weapon . | . . . Special Melee Weapon . | . . . Unidentified Prototypes 2 | . . 2 Corrupted Parts 2 | . 1 1 System Corruption 3 | . 1 2 Parts Lost 18 | . 2 16 Power 3 | . . 3 Propulsion 9 | . 2 7 Utility 3 | . . 3 Weapon 3 | . . 3 Highest Loss Streak 13 | . 1 13 To Critical Strikes . | . . . Average Backups 5 | . 4 9 Power . | . . . Propulsion 1 | . . 4 Utility 1 | . 1 2 Weapon 1 | . 1 1 Tool/Special . | . . . Unused Backups 6 | . . 6 Power . | . . . Propulsion 2 | . . 2 Utility 2 | . . 2 Weapon 1 | . . 1 Tool/Special 1 | . . 1 Average Slot Usage (%) 91 | . 93 88 Engine 4 | . 2 6 Core 7 | . 11 1 Treads 13 | . 18 3 Leg 1 | . 2 . Hover 6 | . . 16 Device 12 | . 14 9 Storage 12 | . 14 11 Hackware 7 | . . 19 Energy Gun 16 | . 24 4 Energy Cannon 2 | . . 5 Launcher 5 | . 3 8 Peak Build Rating 21 | 7 9 21 Average Rating 11 | 5 8 17 On Entrance 5 | . 7 9 Avg Prop Armor Cover (%) 7 | . 7 7 Naked Turns . | . . . Heaviest Build 31 | 13 31 31 Greatest Support 43 | 40 40 43 Greatest Overweight (x) 10 | . 10 3 Average Overweight (x) . | . . . Largest Inventory Capacity 15 | 8 15 15 Average Capacity 12 | 7 11 15 Most Carried 12 | 1 6 12 Average Carried 5 | . 4 9 Final Capacity 15 | 8 15 15 Final Carried 6 | 1 6 6 Class Distribution -------------------- 71% | Mutant 28% | Hacker-Mutant Dominant Class ---------------- Mutant | -10/Materials Hacker-Mutant | -9/Materials Resources | -11 -10 -9 ----------- Run | Yrd Mat Mat Matter Collected 632 | 270 100 262 Remotely . | . . . Salvage Created 1397 | 130 452 815 Parts 83 | 10 29 44 Haulers Intercepted 1 | . . 1 Recyclers Shooed 1 | . . 1 Parts Field Recycled . | . . . Retrieved Matter . | . . . Parts Self-Destructed . | . . . Prevented . | . . . Parts Restored . | . . . Kills | -11 -10 -9 ------- Run | Yrd Mat Mat Combat Hostiles Destroyed 26 | . 13 13 Melee 5 | . 1 4 Guns 5 | . 5 . Cannons 5 | . . 5 AOE 9 | . 6 3 Classes Destroyed 11 | 2 4 5 Worker 2 | . . 2 Tunneler 2 | 2 . . Hauler 1 | . . 1 Recycler 6 | 1 1 4 Operator 2 | . 2 . Watcher 3 | . 1 2 Swarmer 11 | . 6 5 Grunt 10 | . 7 3 Brawler 1 | . . 1 Duelist 1 | . . 1 Sentry 3 | . . 3 Best Kill Streak 6 | 3 6 6 Combat Bots Only 5 | . 5 4 Max Kills in Single Turn 3 | 1 3 3 Gunslinging . | . . . Exploded 3 | . 3 1 Melee 1 | . 1 1 Uniques/NPCs Destroyed . | . . . Combat | -11 -10 -9 -------- Run | Yrd Mat Mat Hostile Shots Fired 236 | . 56 180 Missed 58 | . 19 39 Hits 178 | . 37 141 Melee 7 | . . 7 Projectile 171 | . 37 134 Critical Strikes 3 | . . 3 Damage Taken 2064 | . 518 1546 Core 491 | . 86 405 Absorbed by Shields . | . . . Core Remaining (%) 82 | 100 65 . Volleys Fired 95 | 7 45 43 Largest 2 | 2 2 2 Hottest 118 | 90 90 118 Shots Fired 145 | 14 77 54 Gun 101 | 14 73 14 Cannon 33 | . . 33 Launcher 11 | . 4 7 Special . | . . . Kinetic . | . . . Thermal 72 | 7 28 37 Explosive 11 | . 4 7 Electromagnetic 62 | 7 45 10 Robot Hit Streak 9 | 4 7 9 Robot Miss Streak 5 | 2 5 3 Penetration Max . | . . . Secondary Targets 1 | . 1 . Max Gunslinging Chain 1 | . 1 . Shots Hit Robots 102 | 9 43 50 Core Hits 48 | 2 22 24 Critical Kills 1 | . . 1 Critical Parts Destroyed 1 | . . 1 Critical Strikes 3 | . 1 2 Burn 1 | . 1 . Smash 2 | . . 2 Melee Attacks 24 | . . 24 Impact 24 | . . 24 Slashing . | . . . Piercing . | . . . Sneak Attacks . | . . . Combat Hostiles . | . . . Follow-up Attacks . | . . . Damage Inflicted 2352 | 159 897 1296 Guns 785 | 112 545 128 Cannons 473 | . . 473 Explosions 670 | 47 335 288 Melee 407 | . . 407 Ramming 17 | . 17 . Kinetic . | . . . Thermal 758 | 96 177 485 Explosive 580 | . 292 288 Electromagnetic 590 | 63 411 116 Impact 407 | . . 407 Slashing . | . . . Piercing . | . . . Highest Corruption 6 | . 5 6 Average Corruption 4 | . 3 4 Corruption Purged . | . . . Corruption Blocked . | . . . Effects 17 | . 8 9 Message Errors 3 | . 1 2 Matter Fused 5 | . 2 3 Heat Flow Errors 4 | . 3 1 Parts Rejected 1 | . . 1 Data Loss (minor) 3 | . 2 1 Data Loss (major) 1 | . . 1 Overload Shots . | . . . Overflow Damage 191 | 29 . 162 Projectiles 13 | . . 13 Explosions 38 | 29 . 9 Melee 140 | . . 140 Knockbacks 1 | . . 1 Impact 1 | . . 1 Kinetic . | . . . Secondary . | . . . Self-Inflicted Damage 124 | . 97 27 Shots 4 | . 3 1 Rammed 6 | . 6 . Targets Rammed 7 | . 7 . Kicked . | . . . Crushed 1 | . 1 . Highest Temperature 495 | 120 495 346 Average Temperature 151 | 55 186 111 Received Heat Transfer 519 | . 216 303 Effects 3 | . 3 . Shutdowns 2 | . 2 . Damage (minor) 1 | . 1 . Siege Activations . | . . . Martial Activations . | . . . Shielding Activations . | . . . Robots Disrupted . | . . . Combat Hostiles . | . . . Robots Corrupted 2 | . 1 1 Combat Hostiles 2 | . 1 1 Parts Fried 5 | . 2 3 Impact Corruptions 7 | . . 7 Robots Melted . | . . . Combat Hostiles . | . . . Parts Melted . | . . . Heat Transferred 1617 | 198 531 888 Parts Sabotaged . | . . . Parts Stolen . | . . . Parts Stripped . | . . . Power Chain Reactions 2 | 1 1 . Alert | -11 -10 -9 ------- Run | Yrd Mat Mat Maximum Alert Level 1 | . . 1 Low Security (%) 97 | 100 100 92 Level 1 2 | . . 7 Level 2 . | . . . Level 3 . | . . . Level 4 . | . . . Level 5 . | . . . High Security . | . . . Max Security . | . . . Peak Influence 218 | 10 149 218 Initial 16 | . . 16 Average 61 | 2 62 70 Influence Increases 923 | 15 400 508 Destroy 0b10 Robot/C 520 | . 260 260 Destroy 0b10 Robot/NC 80 | 15 20 45 Destroy Leader 128 | . 62 66 Successful Hack 12 | . 12 . Disable Machine 60 | . 15 45 Destroy Structure 63 | . 31 32 Lose Combat Pursuer 60 | . . 60 Influence Decreases 733 | 15 360 358 Entered New Map 24 | . . 24 Time Decay 517 | 15 303 199 Lost Part 155 | . 20 135 Purge Threat 37 | . 37 . Squads Dispatched 2 | . 2 . Investigation . | . . . Extermination . | . . . Reinforcement 2 | . 2 . Assault . | . . . Garrison . | . . . Intercept . | . . . Searches Triggered . | . . . Construction Impeded . | . . . Haulers Reinforced . | . . . Active Scanning Responses . | . . . Cargo Convoy Interrupts . | . . . Stealth | -11 -10 -9 --------- Run | Yrd Mat Mat Distress Signals 6 | . 2 4 Communications Jammed . | . . . Distress Signals . | . . . Times Spotted 47 | . 20 27 Peak Tracking Total 11 | . 6 11 Tactical Retreats 3 | . . 3 Traps | -11 -10 -9 ------- Run | Yrd Mat Mat Traps Triggered 5 | . 3 2 Indirectly . | . . . Trap Hack Attempts . | . . . Triggered . | . . . Disarmed . | . . . Reprogrammed . | . . . Reused . | . . . Traps Extracted . | . . . Installed . | . . . Triggered . | . . . Machines | -11 -10 -9 ---------- Run | Yrd Mat Mat Machines Disabled 4 | . 1 3 Max in Single Turn 1 | . 1 1 Machines Repaired . | . . . Machines Dismantled . | . . . Machines Sabotaged . | . . . Overloaded Fab Kills . | . . . Hacking | -11 -10 -9 --------- Run | Yrd Mat Mat Machines Accessed 5 | . 3 2 Terminals 4 | . 3 1 Fabricators . | . . . Repair Stations . | . . . Recycling Units . | . . . Scanalyzers 1 | . . 1 Garrison Access . | . . . Total Hacks 10 | . 6 4 Successful 7 | . 3 4 Failed 3 | . 3 . Catastrophic 2 | . 2 . Database Lockouts . | . . . Manual 1 | . 1 . Terminals 7 | . 6 1 Fabricators . | . . . Repair Stations . | . . . Recycling Units . | . . . Scanalyzers 3 | . . 3 Garrison Access . | . . . Terminal Hacks 4 | . 3 1 Branch Access Points 1 | . . 1 Unreport Threat 2 | . 2 . Zone Layout 1 | . 1 . Fabricator Hacks . | . . . Repair Station Hacks . | . . . Recycling Unit Hacks . | . . . Scanalyzer 3 | . . 3 Retrieve Study 3 | . . 3 Garrison Access Hacks . | . . . Unauthorized Hacks . | . . . Terminals . | . . . Fabricators . | . . . Repair Stations . | . . . Recycling Units . | . . . Scanalyzers . | . . . Garrison Access . | . . . Data Cores Recovered . | . . . Used . | . . . Hacking Detections 3 | . 2 1 Full Trace Events . | . . . Feedback Events . | . . . Feedback Blocked . | . . . Robot Schematics Acquired . | . . . Robots Built . | . . . Authchips . | . . . Time . | . . . Total Robot Build Rating . | . . . Part Schematics Acquired . | . . . Parts Built . | . . . Authchips . | . . . Time . | . . . Total Part Build Rating . | . . . Part Studies Acquired 3 | . . 3 Parts Repaired . | . . . Time . | . . . Parts Recycled . | . . . Recycled Matter . | . . . Retrieved Matter . | . . . Retrieved Components . | . . . Parts Scanalyzed . | . . . Part Schematics Acquired . | . . . Parts Damaged . | . . . Bothacking | -11 -10 -9 ------------ Run | Yrd Mat Mat Used RIF Installer . | . . . Robots Hacked . | . . . Non-combat . | . . . Combat . | . . . Robot Hacks Applied . | . . . Relay Couplers Released . | . . . Fabnet Peak Effective % . | . . . Robots Rewired . | . . . Allies Hacked . | . . . Hacks Repelled . | . . . Allies | -11 -10 -9 -------- Run | Yrd Mat Mat Total Allies . | . . . Largest Group . | . . . Highest-Rated Group . | . . . Highest-Rated Ally . | . . . Total Orders . | . . . Ally Attacks . | . . . Total Damage . | . . . Kills . | . . . Allies Corrupted . | . . . Allies Melted . | . . . Intel | -11 -10 -9 ------- Run | Yrd Mat Mat Active Infowar (turns) 1254 | 20 805 429 Seismic 1254 | 20 805 429 Robot Analysis Total . | . . . Derelict Logs Recovered . | . . . Drone Launches . | . . . Drone Recoveries . | . . . Exploration | -11 -10 -9 ------------- Run | Yrd Mat Mat Turns Passed 1417 | 94 805 518 Spaces Moved 615 | 42 315 258 Core 6 | 4 2 . Treads 334 | 38 280 16 Legs 33 | . 33 . Wheels . | . . . Hover 242 | . . 242 Flight . | . . . Fastest Speed 50 | 50 160 116 Average Speed 164 | 149 200 122 Slowest Speed 550 | 160 550 250 Overloaded Moves . | . . . Propulsion Burnouts . | . . . Robots Hopped . | . . . Potential Cave-ins . | . . . Cave-ins Triggered . | . . . Exploration Rate (%) 33 | 5 64 30 Regions Visited 2 Branch Regions . Pre-discovered Areas . | . . . Known Exits Taken . | . . . Unknown Exits Taken 2 | 1 1 . Scrap Searched . | . . . Spaces Dug . | . . . Terrain Destroyed 65 | . 26 39 Melee . | . . . Projectile . | . . . AOE 65 | . 26 39 Terrain Rammed . | . . . Walls Destroyed . | . . . Machines Disabled . | . . . Actions | -11 -10 -9 --------- Run | Yrd Mat Mat Total 818 | 56 400 362 Wait 26 | . 20 6 Move 613 | 41 314 258 Hop . | . . . Pick Up 15 | 1 4 10 Fast Attach 15 | 7 4 4 Attach 10 | . . 10 Detach . | . . . Swap 11 | . 5 6 Drop 2 | . 1 1 Fire 95 | 7 45 43 Melee 24 | . . 24 Ram . | . . . Kick . | . . . Crush 7 | . 7 . Escape Stasis . | . . . Rewire . | . . . Trap . | . . . Miscellaneous . | . . . Route ------- -11/Scrapyard -10/Materials (discovered 3 exits: *Mat x2 / [*Min]) -9/Materials (discovered 2 exits: *Min x2) History --------- Turn | Location | Event 3 | -11/Scrapyard | Discovered new exit (range 15) 95 | -11/Scrapyard | Entered Materials 314 | -10/Materials | Discovered new exit (range 16) 316 | -10/Materials | Build established: Mutant 367 | -10/Materials | Discovered new exit (range 14) 695 | -10/Materials | Derelicts attacked the area 788 | -10/Materials | Discovered new exit (range 8) 900 | -10/Materials | Entered another Materials area 900 | -9/Materials | Evolved 2 slots: Utility x2 942 | -9/Materials | Identified exit to Mines 1207 | -9/Materials | Build established: Hacker-Mutant 1358 | -9/Materials | Core integrity fell below 50% 1404 | -9/Materials | Core integrity fell below 20% 1418 | -9/Materials | Destroyed by S-10 Pest with Light Assault Rifle Last Messages --------------- 01385_ G-34 Mercenary suffers critical hit (Smash). 01385_ Destroyed Aluminum Leg. 01385_ G-34 Mercenary system corrupted by crushing effect. 01385_ G-34 Mercenary destroyed. 01388_ Acquired 25 matter. 01389_ K-01 Serf collects debris. 01390_ System corrupted: Matter fused (-6). 01390_ Acquired 6 matter. 01393_ Lgt. Treads+ destroyed. 01403_ Destroyed Flight Unit. 01403_ S-10 Pest system corrupted by crushing effect. 01407_ System Shield destroyed. 01410_ S-10 Pest destroyed. 01412_ Imp. Treads+ destroyed. 01418_ Destroyed Flight Unit. 01418_ S-10 Pest system corrupted by crushing effect. Map ----- +----------------------------------------------------+ | ?????????????????????????????????????????????????? | | ?????????????????????????????????????????????????? | | ?????????????????????????????????????????????????? | | ?????????????????????????????????????????????????? | | ?????????????????????????????????????????????????? | | ?????????????????????????????????????????????????? | | ?>???????????????????????????????????????????????? | | ?????????????????????????????????????????????????? | | ?????????????????????????????????????????????????? | | ?????????????????????????????????????????????????? | | ?????????????????????????????????????????????????? | | ?????????????????????????????????????????????????? | | ?????????????????????????????????????????????????? | | ?????????????????????????????????????????????????? | | ??????????""?????????????????????????????????????? | | ??????????"" ##+##########+########?#### ???????? | | ??????????"" = ?????? | | ???????? """ ? #????? | | ?????? ???? #????? | | ?????? #????# #????? | | ?????????????######### #????# #????? | | ?????????????????????# #????# = #????? | | ?????????????????????#[#????# %%! #????? | | ?????????????????#####/###### % #????? | | ?????????????????# ggs%[ ## #????? | | ?????????????????# *%!@[## % #????? | | ?????????????????# [ =s#% % #????? | | ?????????????????# =/a[ " #????? | | ?????????????????# !!#* " #????? | | ?????????????????# =# #????? | | ?????????????????# # t"T" #????? | | ????????????????## # """ #????? | | ????????????????############ #????? | | ????????????????## #??# #????? | | ???????????????###############+# ###### | | ??########?????# ! # | | ??# #?????## """ # ##### | | ??# """ #?????# """ """ # #???? | | ??# """ #?????# "" """ """ # #???? | | ??# """ #?????### # #???? | | ??# #???????# ] # ##### #???? | | ???? #######?#################+####### ##??? | | ??####+### #??????????????????????#""" #??? | | ??# #??????????????????????#" #??? | | ??# T #??????????????????????#"! #??? | | ??# !*! #??????????????????????#"" > #??? | | ??# # = #??????????????????????#"| #??? | | ??# ## ####????????????????????#" #??? | | ??#= !!! ## !##???????????????????#""" #??? | | ??# !!!!## !#???????????????????#### ##??? | +----------------------------------------------------+ Best States ------------- Heat Dissipation 28 Energy Generation 14 Energy Capacity 160 Matter Stores 300 Matter Capacity 300 Sight Range 16 Terrain Scan Density 10 Evasion (%) 40 Recoil Reduction 2 Offensive Hacking 10 Defensive Hacking 10 Item Schematics ----------------- None Robot Schematics ------------------ None Fabricated ------------ Nothing Repaired ---------- Nothing Studied --------- Imp. Treads | -9/Materials | Hacked Lgt. Treads | -9/Materials | Hacked Lgt. Ion Engine | -9/Materials | Hacked Alien Tech Used ----------------- None Achievements -------------- None Challenges ------------ None Game ------ Seed TargetThunderFragment Manual? 0 Play Time 00:09:53 Cumulative 198.5 hours Start 2026.08.27 @ 22:52:23 End 2026.08.27 @ 23:02:27 Sessions 1 Manual Loads 0 Difficulty Rogue Special Mode None Game No. 312 Rogue 312 Adventurer 0 Explorer 0 Win Type - Total 1 Types 1/0/0/0/0/0/0/0/0/0 Lore% 67 Gallery% 61 Achievement% 46 Wizard Run 0 Options --------- Layout 1 ASCII 0 Keyboard 1 Movement Arrows Keybinds 0 Fullscreen 1 Font 24/Smallcaps Map View 50x35 Zoom Use 0% Tactical HUD 1 Map Filters NONE Filters NONE Steam 1 RUN: 07381331-bdc5-4165-85d1-8586410a3378